Workbook

Sheet Menot
B1: Budjetti tapahtumalle [Tapahtuman nimi] | H1: MENOT
B3: KULUT YHTEENSÄ | G3: Arvio | H3: Todellinen
G4: =SUM(C11,C19,C25,C32,G11,G19,G24) -> 882.00 € | H4: =SUM(D11,D19,D25,D32,H11,H19,H24) -> 333.00 €
B6: Tila | C6: Arvio | D6: Todellinen | F6: Virvokkeet | G6: Arvio | H6: Todellinen
B7: Huoneiden ja tilojen hinnat | C7: 500.00 € | F7: Ruokakulut
B8: Tilan henkilökunta | F8: Juomat | G8: 20.00 €
B9: Laitteet | F9: Liinavaatteet | H9: 20.00 €
B10: Pöydät ja tuolit | F10: Henkilökunta ja palvelurahat
B11: Summa | C11: =SUBTOTAL(109,Taulukko1[Arvio]) -> 500.00 € | D11: =SUBTOTAL(109,Taulukko1[Todellinen]) -> 0.00 € | F11: Summa | G11: =SUBTOTAL(109,Taulukko3[Arvio]) -> 20.00 € | H11: =SUBTOTAL(109,Taulukko3[Todellinen]) -> 20.00 €
B13: Koristeet | C13: Arvio | D13: Todellinen | F13: Ohjelma | G13: Arvio | H13: Todellinen
B14: Kukat | C14: 200.00 € | D14: 300.00 € | F14: Esiintyjät
B15: Kynttilät | F15: Kaiuttimet | G15: 30.00 €
B16: Valaistus | F16: Matkakulut
B17: Ilmapallot | F17: Hotelli
B18: Paperitarvikkeet | F18: Muut
B19: Summa | C19: =SUBTOTAL(109,Taulukko4[Arvio]) -> 200.00 € | D19: =SUBTOTAL(109,Taulukko4[Todellinen]) -> 300.00 € | F19: Summa | G19: =SUBTOTAL(109,Taulukko5[Arvio]) -> 30.00 € | H19: =SUBTOTAL(109,Taulukko5[Todellinen]) -> 0.00 €
B21: Tiedotus | C21: Arvio | D21: Todellinen | F21: Palkinnot | G21: Arvio | H21: Todellinen
B22: Grafiikat | F22: Nauhat/kyltit/pokaalit
B23: Kopiot/tulosteet | C23: 20.00 € | F23: Lahjat | G23: 100.00 €
B24: Postimaksut | F24: Summa | G24: =SUBTOTAL(109,Taulukko7[Arvio]) -> 100.00 € | H24: =SUBTOTAL(109,Taulukko7[Todellinen]) -> 0.00 €
B25: Summa | C25: =SUBTOTAL(109,Taulukko6[Arvio]) -> 20.00 € | D25: =SUBTOTAL(109,Taulukko6[Todellinen]) -> 0.00 €
B27: Sekalaiset | C27: Arvio | D27: Todellinen
B28: Puhelin | D28: 13.00 €
B29: Liikenne | C29: 12.00 €
B30: Paperitavarat
B31: Faksipalvelut
B32: Summa | C32: =SUBTOTAL(109,Taulukko8[Arvio]) -> 12.00 € | D32: =SUBTOTAL(109,Taulukko8[Todellinen]) -> 13.00 €

Sheet Tulot
B1: Budjetti tapahtumalle [Tapahtuman nimi] | G1: TULOT
B3: TULOT YHTEENSÄ | F3: Arvio | G3: Todellinen
F4: =SUM(F11,F20,F28,F36) -> 1,936.00 € | G4: =SUM(G11,G20,G28,G36) -> 1,831.00 €
B6: SISÄÄNPÄÄSY
B7: Arvioitu määrä | C7: Todellinen määrä | D7: Tyyppi | E7: Hinta | F7: Arvioidut tulot | G7: Todelliset tulot
B8: 300 | C8: 278 | D8: Aikuiset @ | E8: 5.00 € | F8: =B8*E8 -> 1,500.00 € | G8: =C8*E8 -> 1,390.00 €
B9: 197 | C9: 195 | D9: Lapset @ | E9: 2.00 € | F9: =B9*E9 -> 394.00 € | G9: =C9*E9 -> 390.00 €
B10: 42 | C10: 51 | D10: Muut @ | E10: 1.00 € | F10: =B10*E10 -> 42.00 € | G10: =C10*E10 -> 51.00 €
B11: Summa | F11: =SUBTOTAL(109,Taulukko9[Arvioidut tulot]) -> 1,936.00 € | G11: =SUBTOTAL(109,Taulukko9[Todelliset tulot]) -> 1,831.00 €
B13: OHJELMAN MAINOKSET
B14: Arvioitu määrä | C14: Todellinen määrä | D14: Tyyppi | E14: Hinta | F14: Arvioidut tulot | G14: Todelliset tulot
B15: 12 | D15: Kansilehdet @ | F15: =B15*E15 -> 0.00 € | G15: =C15*E15 -> 0.00 €
C16: 158 | D16: Puolikkaat sivut @ | F16: =B16*E16 -> 0.00 € | G16: =C16*E16 -> 0.00 €
B17: 4 | D17: Neljännessivut @ | F17: =B17*E17 -> 0.00 € | G17: =C17*E17 -> 0.00 €
B18: Summa | F18: =SUBTOTAL(109,Taulukko10[Arvioidut tulot]) -> 0.00 € | G18: =SUBTOTAL(109,Taulukko10[Todelliset tulot]) -> 0.00 €
B20: NÄYTTEILLEASETTAJAT/MYYJÄT
B21: Arvioitu määrä | C21: Todellinen määrä | D21: Tyyppi | E21: Hinta | F21: Arvioidut tulot | G21: Todelliset tulot
B22: 23 | D22: Suuret kojut @ | F22: =B22*E22 -> 0.00 € | G22: =C22*E22 -> 0.00 €
B23: 354 | D23: Keskisuuret kojut @ | F23: =B23*E23 -> 0.00 € | G23: =C23*E23 -> 0.00 €
B24: 56 | D24: Pienet kojut @ | F24: =B24*E24 -> 0.00 € | G24: =C24*E24 -> 0.00 €
B25: Summa | F25: =SUBTOTAL(109,Taulukko11[Arvioidut tulot]) -> 0.00 € | G25: =SUBTOTAL(109,Taulukko11[Todelliset tulot]) -> 0.00 €
B27: MYYDYT KOHTEET
B28: Arvioitu määrä | C28: Todellinen määrä | D28: Tyyppi | E28: Hinta | F28: Arvioidut tulot | G28: Todelliset tulot
D29: Kohteet @ | F29: =B29*E29 -> 0.00 € | G29: =C29*E29 -> 0.00 €
B30: 123 | D30: Kohteet @ | F30: =B30*E30 -> 0.00 € | G30: =C30*E30 -> 0.00 €
D31: Kohteet @ | F31: =B31*E31 -> 0.00 € | G31: =C31*E31 -> 0.00 €
B32: 13 | D32: Kohteet @ | F32: =B32*E32 -> 0.00 € | G32: =C32*E32 -> 0.00 €
B33: Summa | F33: =SUBTOTAL(109,Taulukko12[Arvioidut tulot]) -> 0.00 € | G33: =SUBTOTAL(109,Taulukko12[Todelliset tulot]) -> 0.00 €

Sheet Tuotto - tappion yhteenveto
B1: Budjetti tapahtumalle [Tapahtuman nimi] | G1: TUOTTO
G2: Tappion yhteenveto
C5: Arvio | D5: Todellinen
B6: Tulot yhteensä | C6: =Tulot!F4 -> 1,936.00 € | D6: =Tulot!G4 -> 1,831.00 €
B7: Kulut yhteensä | C7: =Menot!G4 -> 882.00 € | D7: =Menot!H4 -> 333.00 €
B9: Yhteenlaskettu tuotto (tai tappio) | C9: =C6-C7 -> 1,054.00 € | D9: =D6-D7 -> 1,498.00 €
